Cogmind - Beta 11.1 @@@ ROGUE MODE // 2022.07.19 @ 22:19:39 Player: tkc Result: Destroyed by as-49104 with Assembled Maul Performance ------------- Evolutions (0) 0 Regions Visited (2) 400 Robots Destroyed (22) 110 Value Destroyed (391) 391 Prototype IDs (0) 0 Alien Tech Used (0) 0 Bonus (0) 0 TOTAL SCORE: 901 Bonus ------- None Cogmind --------- Core Integrity 0/250 Matter 290/300 Energy 100/100 System Corruption 5% Temperature Cool (16) Movement Rolling (175) Ox5 Location -10/Mines Parts ------- > --- POWER (1) -------- (None) > --- PROPULSION (2) --- Compact Wheel > --- UTILITY (2) ------ Huge Storage Unit > --- WEAPON (2) ------- Light Assault Rifle Light Assault Rifle > --- INVENTORY (25) --- Light Ion Engine Light Ion Engine Light Ion Engine Light Treads Light Treads Light Treads Compact Wheel Compact Wheel Compact Wheel Compact Wheel Large Storage Unit High-capacity Matter Pod (200) Compact Matter Pod (150) Structural Scanner Power Shielding Bomb Drone Bay Light Assault Rifle Light Assault Rifle Mining Laser Peak State ------------ > --- POWER ------------ Light Ion Engine > --- PROPULSION ------- Compact Wheel Compact Wheel > --- UTILITY ---------- Huge Storage Unit Utility Shielding > --- WEAPON ----------- Heavy EM Pulse Gun Heavy EM Pulse Gun > --- INVENTORY -------- Light Ion Engine Light Ion Engine Light Ion Engine Light Treads Light Treads Light Treads Compact Wheel Compact Wheel Compact Wheel Compact Wheel Large Storage Unit High-capacity Matter Pod Compact Matter Pod Structural Scanner Power Shielding Bomb Drone Bay Light Assault Rifle Light Assault Rifle Light Assault Rifle Light Assault Rifle Mining Laser [Rating: 12] Favorites ----------- Power Light Ion Engine Engine Light Ion Engine Propulsion Compact Wheel Treads Light Treads Wheel Compact Wheel Utility Utility Shielding Storage Small Storage Unit Protection Utility Shielding Weapon Heavy EM Pulse Gun Energy Gun Heavy EM Pulse Gun Ballistic Gun Light Assault Rifle Special Weapon Mining Laser Build | -11 -10 -10 ------- Run | Scr Mat Min Slots Evolved . | . . . Power . | . . . Propulsion . | . . . Utility . | . . . Weapon . | . . . Parts Attached 32 | 8 21 3 Power 3 | 2 1 . Engine 3 | 2 1 . Core . | . . . Reactor . | . . . Propulsion 9 | 2 7 . Treads 3 | . 3 . Leg . | . . . Wheel 6 | 2 4 . Hover . | . . . Flight . | . . . Utility 5 | 2 3 . Device . | . . . Storage 4 | 2 2 . Processor . | . . . Hackware . | . . . Protection 1 | . 1 . Artifact . | . . . Weapon 15 | 2 10 3 Energy Gun 9 | 2 6 1 Energy Cannon . | . . . Ballistic Gun 4 | . 2 2 Ballistic Cannon . | . . . Launcher . | . . . Special Weapon 2 | . 2 . Impact Weapon . | . . . Slashing Weapon . | . . . Piercing Weapon . | . . . Special Melee Weapon . | . . . Unidentified Prototypes . | . . . Parts Lost 7 | . 2 5 Power 1 | . . 1 Propulsion 1 | . . 1 Utility 1 | . . 1 Weapon 4 | . 2 2 Highest Loss Streak 5 | . 2 5 To Critical Strikes . | . . . Average Slot Usage (%) 99 | . 99 98 Engine 13 | . 14 13 Treads 13 | . 18 . Wheel 14 | . 9 27 Storage 16 | . 17 14 Protection 11 | . 10 13 Energy Gun 16 | . 17 13 Ballistic Gun 3 | . 4 1 Special Weapon 7 | . 5 13 Naked Turns . | . . . Heaviest Build 90 | 17 90 88 Greatest Support 40 | 26 40 32 Greatest Overweight (x) 2 | . 2 2 Average Overweight (x) . | . . 2 Largest Inventory Capacity 25 | 8 25 25 Average Capacity 16 | 7 14 25 Most Carried 22 | 8 18 22 Average Carried 13 | 5 12 20 Final Capacity 25 | 8 25 25 Final Carried 20 | 8 18 20 Class Distribution -------------------- 100% | Mutant Dominant Class ---------------- Mutant | -10/Materials Mutant | -10/Mines Resources | -11 -10 -10 ----------- Run | Scr Mat Min Matter Collected 764 | 280 444 40 Remotely . | . . . Salvage Created 839 | 201 496 142 Parts 49 | 12 29 8 Haulers Intercepted . | . . . Recyclers Shooed 2 | 1 1 . Parts Field Recycled . | . . . Retrieved Matter . | . . . Parts Self-Destructed . | . . . Prevented . | . . . Kills | -11 -10 -10 ------- Run | Scr Mat Min Combat Hostiles Destroyed 12 | . 7 5 Guns 10 | . 7 3 Cannons 2 | . . 2 Classes Destroyed 8 | 3 3 2 Worker 2 | 2 . . Builder 1 | . 1 . Tunneler 3 | 3 . . Recycler 4 | 1 2 1 Watcher 2 | . 2 . Swarmer 3 | . . 3 Grunt 7 | . 7 . Assembled 2 | . . 2 Best Kill Streak 6 | 6 4 3 Combat Bots Only 3 | . 2 3 Max Kills in Single Turn 2 | 1 2 2 Gunslinging . | . . . Exploded . | . . . Melee . | . . . Uniques/NPCs Destroyed . | . . . Combat | -11 -10 -10 -------- Run | Scr Mat Min Damage Taken 1064 | . 509 555 Core 254 | . 81 173 Absorbed by Shields . | . . . Redirected to Shielding 20 | . 4 16 Core Remaining (%) 100 | 100 . . Volleys Fired 77 | 11 53 13 Largest 2 | 2 2 2 Hottest 145 | 100 100 145 Shots Fired 135 | 22 88 25 Gun 117 | 22 72 23 Cannon . | . . . Launcher . | . . . Special 18 | . 16 2 Kinetic 41 | . 27 14 Thermal 48 | 22 24 2 Explosive . | . . . Electromagnetic 46 | . 37 9 Robot Hit Streak 13 | 13 12 4 Robot Miss Streak 4 | 1 4 4 Penetration Max . | . . . Secondary Targets . | . . . Shots Hit Robots 79 | 17 49 13 Core Hits 36 | 7 20 9 Critical Kills . | . . . Critical Parts Destroyed 1 | . 1 . Critical Strikes 7 | 4 3 . Burn 5 | 4 1 . Destroy 1 | . 1 . Corrupt 1 | . 1 . Melee Attacks . | . . . Impact . | . . . Slashing . | . . . Piercing . | . . . Sneak Attacks . | . . . Combat Hostiles . | . . . Follow-up Attacks . | . . . Damage Inflicted 1062 | 227 636 199 Guns 1001 | 227 627 147 Cannons . | . . . Explosions . | . . . Melee . | . . . Ramming 9 | . 9 . Kinetic 222 | . 157 65 Thermal 394 | 227 115 52 Explosive . | . . . Electromagnetic 437 | . 355 82 Impact . | . . . Slashing . | . . . Piercing . | . . . Highest Corruption 5 | . . 5 Average Corruption 5 | . . 5 Corruption Purged . | . . . Corruption Blocked . | . . . Overload Shots . | . . . Overflow Damage . | . . . Projectiles . | . . . Explosions . | . . . Melee . | . . . Knockbacks . | . . . Impact . | . . . Kinetic . | . . . Secondary . | . . . Self-Inflicted Damage . | . . . Shots . | . . . Rammed 1 | . 1 . Targets Rammed 1 | . 1 . Kicked . | . . . Crushed . | . . . Highest Temperature 280 | 156 280 90 Average Temperature 55 | 56 58 38 Received Heat Transfer 429 | . 309 120 Effects 1 | . 1 . Interference 1 | . 1 . Siege Activations . | . . . Robots Corrupted . | . . . Combat Hostiles . | . . . Parts Fried . | . . . Impact Corruptions . | . . . Robots Melted . | . . . Combat Hostiles . | . . . Parts Melted 1 | 1 . . Heat Transferred 1395 | 962 333 100 Parts Sabotaged . | . . . Parts Stolen . | . . . Parts Stripped . | . . . Power Chain Reactions . | . . . Missiles Intercepted . | . . . Alert | -11 -10 -10 ------- Run | Scr Mat Min Peak Influence 167 | 30 167 100 Initial 25 | . 19 25 Average 70 | 7 69 88 Maximum Alert Level . | . . . Low Security (%) 100 | 100 100 100 Level 1 . | . . . Level 2 . | . . . Level 3 . | . . . Level 4 . | . . . Level 5 . | . . . High Security . | . . . Max Security . | . . . Squads Dispatched 2 | . 2 . Investigation 2 | . 2 . Extermination . | . . . Reinforcement . | . . . Assault . | . . . Garrison . | . . . Intercept . | . . . Searches Triggered . | . . . Construction Impeded . | . . . Haulers Reinforced . | . . . Active Scanning Responses . | . . . Cargo Convoy Interrupts . | . . . Stealth | -11 -10 -10 --------- Run | Scr Mat Min Distress Signals 2 | . 2 . Communications Jammed . | . . . Distress Signals . | . . . Times Spotted 28 | . 15 13 Peak Tracking Total 10 | . 4 10 Tactical Retreats 3 | . 3 . Traps | -11 -10 -10 ------- Run | Scr Mat Min Traps Triggered 2 | . 2 . Indirectly . | . . . Trap Hack Attempts . | . . . Triggered . | . . . Disarmed . | . . . Reprogrammed . | . . . Reused . | . . . Traps Extracted . | . . . Installed . | . . . Triggered . | . . . Machines | -11 -10 -10 ---------- Run | Scr Mat Min Machines Disabled . | . . . Max in Single Turn . | . . . Machines Sabotaged . | . . . Garrisons Compromised . | . . . Overloaded Fab Kills . | . . . Hacking | -11 -10 -10 --------- Run | Scr Mat Min Machines Accessed 11 | . 10 1 Terminals 8 | . 8 . Fabricators . | . . . Repair Stations . | . . . Recycling Units 2 | . 2 . Scanalyzers . | . . . Garrison Access . | . . . Total Hacks 30 | . 29 1 Successful 20 | . 19 1 Failed 10 | . 10 . Catastrophic 3 | . 3 . Database Lockouts . | . . . Manual 25 | . 25 . Terminals 27 | . 27 . Fabricators . | . . . Repair Stations . | . . . Recycling Units 2 | . 2 . Scanalyzers . | . . . Garrison Access . | . . . Terminal Hacks 13 | . 12 1 Part Schematic 3 | . 3 . Robot Analysis 2 | . 2 . Open Door 1 | . . 1 Level Access Points 1 | . 1 . Branch Access Points 1 | . 1 . Terminal Index 1 | . 1 . Alert Level 1 | . 1 . Unreport Threat 1 | . 1 . Recall Investigation 1 | . 1 . Zone Layout 1 | . 1 . Fabricator Hacks . | . . . Repair Station Hacks . | . . . Recycling Unit Hacks 2 | . 2 . Report Inventory 2 | . 2 . Scanalyzer . | . . . Garrison Access Hacks . | . . . Unauthorized Hacks 5 | . 5 . Terminals 5 | . 5 . Botnet 4 | . 4 . Operators 1 | . 1 . Fabricators . | . . . Repair Stations . | . . . Recycling Units . | . . . Scanalyzers . | . . . Garrison Access . | . . . Data Cores Recovered . | . . . Used . | . . . Hacking Detections 7 | . 7 . Full Trace Events . | . . . Feedback Events . | . . . Feedback Blocked . | . . . Robot Schematics Acquired . | . . . Robots Built . | . . . Authchips . | . . . Time . | . . . Total Robot Build Rating . | . . . Part Schematics Acquired 3 | . 3 . Parts Built . | . . . Authchips . | . . . Time . | . . . Total Part Build Rating . | . . . Parts Repaired . | . . . Time . | . . . Parts Recycled . | . . . Recycled Matter . | . . . Retrieved Matter . | . . . Retrieved Components . | . . . Parts Scanalyzed . | . . . Part Schematics Acquired . | . . . Parts Damaged . | . . . Bothacking | -11 -10 -10 ------------ Run | Scr Mat Min Used RIF Installer . | . . . Robots Hacked . | . . . Non-combat . | . . . Combat . | . . . Robot Hacks Applied . | . . . Relay Couplers Released . | . . . Fabnet Peak Effective % . | . . . Robots Rewired . | . . . Allies Hacked . | . . . Hacks Repelled . | . . . Allies | -11 -10 -10 -------- Run | Scr Mat Min Total Allies . | . . . Largest Group . | . . . Highest-Rated Group . | . . . Highest-Rated Ally . | . . . Total Orders . | . . . Ally Attacks . | . . . Total Damage . | . . . Kills . | . . . Allies Corrupted . | . . . Allies Melted . | . . . Intel | -11 -10 -10 ------- Run | Scr Mat Min Robot Analysis Total 2 | . 2 . Derelict Logs Recovered 1 | . . 1 Drone Launches . | . . . Drone Recoveries . | . . . Exploration | -11 -10 -10 ------------- Run | Scr Mat Min Turns Passed 1599 | 112 1057 430 Spaces Moved 904 | 60 569 275 Core 1 | 1 . . Treads 309 | . 309 . Legs . | . . . Wheels 594 | 59 260 275 Hover . | . . . Flight . | . . . Fastest Speed 50 | 50 90 130 Average Speed 133 | 89 140 130 Slowest Speed 160 | 100 160 130 Overloaded Moves . | . . . Propulsion Burnouts . | . . . Robots Hopped . | . . . Cave-ins Triggered . | . . . Exploration Rate (%) 52 | 5 91 61 Regions Visited 2 Branch Regions 1 Pre-discovered Areas . | . . . Known Exits Taken 1 | . 1 . Unknown Exits Taken 1 | 1 . . Scrap Searched . | . . . Spaces Dug 15 | . 15 . Terrain Destroyed 15 | . 15 . Melee . | . . . Projectile 15 | . 15 . AOE . | . . . Terrain Rammed . | . . . Walls Destroyed . | . . . Machines Disabled . | . . . Actions | -11 -10 -10 --------- Run | Scr Mat Min Total 1127 | 95 710 322 Wait 69 | . 43 26 Move 902 | 59 568 275 Hop . | . . . Pick Up 30 | 12 14 4 Fast Attach 13 | 8 5 . Attach 4 | . 2 2 Detach . | . . . Swap 15 | . 14 1 Drop 16 | 5 10 1 Fire 77 | 11 53 13 Melee . | . . . Ram . | . . . Kick . | . . . Crush 1 | . 1 . Escape Stasis . | . . . Rewire . | . . . Trap . | . . . Miscellaneous . | . . . Route ------- -11/Scrapyard -10/Materials (discovered 4 exits: *Mat x3 / *Min) -10/Mines (discovered 1 exit: *Mat) History --------- Turn | Location | Event 24 | -11/Scrapyard | Discovered new exit (range 14) 113 | -11/Scrapyard | Entered Materials 192 | -10/Materials | Discovered new exit (range 15) 273 | -10/Materials | Discovered new exit (range 7) 306 | -10/Materials | Build established: Mutant 422 | -10/Materials | Identified exit to Materials 430 | -10/Materials | Identified exit to Mines 1170 | -10/Materials | Entered Mines 1258 | -10/Mines | Learned Materials terminal intel 1397 | -10/Mines | Discovered exit to Materials (range 12) 1480 | -10/Mines | Found the Drone Emporium 1485 | -10/Mines | Found Prototype Device 1546 | -10/Mines | Assembled infested the area 1578 | -10/Mines | Core integrity fell below 50% 1593 | -10/Mines | Core integrity fell below 20% 1600 | -10/Mines | Destroyed by as-49104 with Assembled Maul Last Messages --------------- 01485_ Acquired Prototype Device. 01512_ K-01 Serf collects debris. 01524_ R-06 Scavenger destroyed. 01525_ K-01 Serf collects debris. 01546_ ALERT: Infestation in the mines, dispatching Demolisher response squad. 01558_ U-05 Engineer destroyed. 01574_ Hvy. EM Pulse Gun destroyed. 01576_ as-30212 destroyed. 01576_ as-81214 destroyed. 01577_ Acquired 16 matter. 01580_ Knocked back. 01585_ Hvy. EM Pulse Gun destroyed. 01586_ Lgt. Ion Engine destroyed. 01586_ System corrupted by crushing effect (+5). 01586_ Knocked back. 01589_ Utility Shielding destroyed. 01595_ Critical hit (Burn: +80). 01596_ Knocked back. 01599_ Com. Wheel destroyed. Map ----- +----------------------------------------------------+ | | | | | | | | | | | | | ?????????????????????????????????????????????????? | | ?????????????????????????????????????????????????? | | ?????????????????????????????????????????????????? | | ?????????????????????????????####????????????????? | | ????????????????????????????# ##???????????????? | | ??????????????????????????## #???????????????? | | ??????????????????????????# #???????????????? | | ??????????????????????????# #???????????????? | | ?????????????????????????? ##??????????????? | | ?????????????????????????? ###????????????? | | ??????????????????????????? ?????????????? | | ??????????????????????????? a??????????????? | | ??????????????????????????? #???????????????? | | ??????????????????????????? a#????????????????? | | ???????????????????????????#% #????????????????? | | ???????????????????????????#!% #?????????????????? | | ??????????????????????????## #??????????????????? | | ????????????????????????###aaa#??????????????????? | | ????????????????????????# a ##??????????????????? | | ????????????????????????#@ ##???????????????????? | | ????????????????????????# r##????????????????????? | | ????????????????????????# #?????????????????????? | | ????????????????????????# #?????????????????????? | | ????????????????????????# #?????????????????????? | | ??????????????????????### #?????????????????????? | | ?????????????????????## ######????####????????? | | ?????????????????????# ## ##??? ????????? | | ?????????????????????# #??# #?????????? | | ?????????????????????## #?? #?????????? | | ??????????????????????### #?# #?????????? | | ????????????????????????## ### #?????????? | | ?????????????????????????#### ## #?????????# | | ????????????????????????###### ##????????# | | ???????????????????????##""## #????????# | | ???????????????????????#" # #????????# | | ???????????????????????#" #????????# | | ???????????????????????#" ##????????# | | ????????? ????????????#" #X ###?????????# | | ????????? ????????????##""## ##???????????# | | ????????# #????????????##### #????????????# | | ????????# #???????????????## ## ##???????????# | | ????????# ??????????????## #### ##########??# | | ??????### #?????????????## ##?# #??# | | ??????# ##????????????# ### ##### #??# | +----------------------------------------------------+ Best States ------------- Heat Dissipation 25 Energy Generation 10 Energy Capacity 250 Matter Stores 300 Matter Capacity 300 Sight Range 16 Terrain Scan Density 10 Utility Shielding 33 Evasion (%) 42 Recoil Reduction 2 Item Schematics ----------------- Core Shielding | -10/Materials | Hacked Hcp. Storage Unit | -10/Materials | Hacked Grenade Launcher | -10/Materials | Hacked Robot Schematics ------------------ None Fabricated ------------ Nothing Alien Tech Used ----------------- None Achievements -------------- None Challenges ------------ None Game ------ Seed FusionAluminumRedistributor Manual? 0 Play Time 00:22:48 Cumulative 76.7 hours Start 2022.07.19 @ 21:59:47 End 2022.07.19 @ 22:19:39 Sessions 1 Manual Loads 0 Difficulty Rogue Special Mode None Game No. 51 Rogue 50 Adventurer 0 Explorer 1 Win Type - Total 0 Types 0/0/0/0/0/0/0/0/0 Lore% 21 Gallery% 33 Achievement% 25 Wizard Run 0 Options --------- ASCII 0 Keyboard 0 Movement Mouse Keybinds 0 Fullscreen 1 Font 18/X11 Map View 76x50 Tactical HUD 1 Map Filters NONE Filters NONE Steam 1 RUN: 35c664b8-9ebd-46e0-95fa-b0c70535ecf4